Cogmind - Beta 13 @@@ ROGUE MODE // 2024.04.21 @ 14:01:03 Player: ForestDarkPsy Result: Destroyed by S-27 Virus with Autogun Performance ------------- Evolutions (3) 1500 Regions Visited (11) 2200 Robots Destroyed (114) 570 Value Destroyed (3750) 3750 Prototype IDs (37) 740 Alien Tech Used (0) 0 Bonus (2056) 2056 TOTAL SCORE: 10816 Bonus ------- High Alert Combat Kills 10 Follower Combat Kills 346 Entered Garrisons 400 Used RIF Installer 1000 Aligned with FarCom 300 Cogmind --------- Core Integrity 0/700 Matter 211/300 Energy 138/150 System Corruption 0% Temperature Cool (3) Movement Walking (130) Location -7/Factory Parts ------- > --- POWER (1) -------- Micro Nuclear Core > --- PROPULSION (4) --- Improved Titanium Leg Improved Titanium Leg Improved Titanium Leg > --- UTILITY (6) ------ Large Storage Unit Improved Target Analyzer Hacking Suite Hacking Suite Relay Coupler [Sentry] (10) > --- WEAPON (2) ------- (None) > --- INVENTORY (15) --- Micro Nuclear Core Improved Airjet Advanced Heat Sink Advanced ECM Suite Relay Coupler [NC] (27) Relay Coupler [Grunt] Relay Coupler [Brawler] (29) Relay Coupler [Hunter] (17) Component Analysis Suite System Restoration Module Compact Ion Cannon Antimatter Cannon Improved Grenade Launcher Peak State ------------ > --- POWER ------------ Micro Nuclear Core > --- PROPULSION ------- Improved Airjet Improved Airjet Improved Airjet Improved Airjet > --- UTILITY ---------- Advanced Heat Sink Large Storage Unit Improved Target Analyzer Improved Propulsion Shielding Hacking Suite Hacking Suite > --- WEAPON ----------- Remote Datajack Spear > --- INVENTORY -------- Micro Nuclear Core High-capacity Storage Unit Advanced ECM Suite Layered Light Armor Plating Relay Coupler [NC] Relay Coupler [Grunt] Relay Coupler [Brawler] Relay Coupler [Sentry] Relay Coupler [Hunter] Component Analysis Suite System Restoration Module Compact Ion Cannon Antimatter Cannon Improved Grenade Launcher [Rating: 57] Favorites ----------- Power Ion Engine Engine Ion Engine Power Core Light Nuclear Core Propulsion Light Treads Treads Light Treads Leg Carbon-fiber Leg Hover Unit Improved Airjet Utility Hacking Suite Device Trap Scanner Storage High-capacity Storage Unit Processor Improved Melee Analysis Suite Hackware Hacking Suite Protection Improved Medium Armor Plating Weapon Great Axe Energy Gun EM Pulse Gun Energy Cannon Compact Ion Cannon Ballistic Gun Assault Rifle Ballistic Cannon Advanced Assault Cannon Launcher Rocket Launcher Special Weapon Remote Datajack Impact Weapon Heavy Flail Slashing Weapon Great Axe Piercing Weapon Spear Special Melee Weapon Improved Datajack Build | -11 -10 -10 -10 -9 -8 -8 -8 -8 -7 -7 -7 ------- Run | Yrd Mat Min Exi Min Mat Gar Mat Sto Fac Gar Fac Slots Evolved 6 | . . . . . 4 . . . 2 . . Power . | . . . . . . . . . . . . Propulsion 2 | . . . . . 1 . . . 1 . . Utility 4 | . . . . . 3 . . . 1 . . Weapon . | . . . . . . . . . . . . Parts Attached 197 | 6 17 3 . 4 50 6 22 7 35 30 17 Power 14 | 1 2 . . . 3 1 2 1 2 1 1 Engine 7 | 1 2 . . . 1 1 1 1 . . . Core 7 | . . . . . 2 . 1 . 2 1 1 Reactor . | . . . . . . . . . . . . Propulsion 41 | 2 5 . . . 8 . 4 1 4 10 7 Treads 15 | . 2 . . . 8 . 4 1 . . . Leg 13 | 2 3 . . . . . . . 4 . 4 Wheel . | . . . . . . . . . . . . Hover 13 | . . . . . . . . . . 10 3 Flight . | . . . . . . . . . . . . Utility 82 | 1 6 1 . 1 17 4 11 2 23 12 4 Device 41 | 1 4 1 . 1 7 3 6 1 16 . 1 Storage 3 | . 1 . . . 1 . . . . 1 . Processor 10 | . 1 . . . 3 . 3 . 1 2 . Hackware 7 | . . . . . 1 . 1 . 3 . 2 Protection 21 | . . . . . 5 1 1 1 3 9 1 Artifact . | . . . . . . . . . . . . Weapon 60 | 2 4 2 . 3 22 1 5 3 6 7 5 Energy Gun 8 | . 2 2 . 2 2 . . . . . . Energy Cannon 7 | . . . . . 5 . . . 2 . . Ballistic Gun 4 | 2 1 . . . 1 . . . . . . Ballistic Cannon 12 | . 1 . . . 5 . 2 1 . 2 1 Launcher 3 | . . . . 1 1 . 1 . . . . Special Weapon 5 | . . . . . . . . . 1 2 2 Impact Weapon 5 | . . . . . 5 . . . . . . Slashing Weapon 9 | . . . . . 3 1 2 1 2 . . Piercing Weapon 6 | . . . . . . . . . 1 3 2 Special Melee Weapon 1 | . . . . . . . . 1 . . . Unidentified Prototypes . | . . . . . . . . . . . . Parts Lost 23 | . . 2 . . 2 1 2 . 1 6 9 Power 6 | . . . . . 1 1 2 . . 1 1 Propulsion 6 | . . . . . . . . . . 2 4 Utility 7 | . . . . . 1 . . . 1 3 2 Weapon 4 | . . 2 . . . . . . . . 2 Highest Loss Streak 6 | . . 1 . . 1 1 1 . 1 4 6 To Critical Strikes . | . . . . . . . . . . . . Average Slot Usage (%) 96 | . 98 100 71 81 99 99 99 99 98 90 84 Engine 6 | . 14 14 14 14 7 8 2 9 . . . Core 3 | . . . . . 1 . 6 . 6 6 6 Treads 18 | . 21 28 28 28 27 27 26 26 . . . Leg 7 | . 6 . . . . . . . 29 7 1 Hover 2 | . . . . . . . . . . 20 23 Device 10 | . 14 14 14 14 8 6 9 10 14 1 1 Storage 8 | . 6 14 14 14 9 9 9 9 7 7 7 Processor 7 | . 6 . . . 10 13 13 9 6 4 7 Hackware 7 | . . . . . 7 . 8 9 13 14 21 Protection 5 | . . . . . 9 16 5 7 2 15 3 Energy Gun 2 | . 14 28 . 3 . . . . . . . Energy Cannon 1 | . . . . . 4 . . . 2 . . Ballistic Gun 1 | . 11 . . . . . . . . . . Ballistic Cannon 2 | . 1 . . . 4 2 3 11 . . 2 Slashing Weapon 6 | . . . . . 4 15 14 6 7 1 . Piercing Weapon 1 | . . . . . . . . . 2 6 4 Naked Turns . | . . . . . . . . . . . . Heaviest Build 68 | 9 31 30 26 30 60 68 67 68 68 60 35 Greatest Support 80 | 20 40 40 40 40 73 73 73 73 73 60 80 Greatest Overweight (x) 9 | 1 . . . . . . . 1 . 9 1 Average Overweight (x) . | . . . . . . . . . . . . Largest Inventory Capacity 20 | 5 15 15 15 15 20 20 20 20 20 20 15 Average Capacity 17 | 5 9 15 15 15 19 20 20 20 20 16 15 Most Carried 20 | 2 9 9 11 15 20 20 20 20 20 20 15 Average Carried 16 | 1 5 7 9 11 18 18 19 19 19 15 14 Final Capacity 20 | 5 15 15 15 15 20 20 20 20 20 15 15 Final Carried 20 | 2 9 9 11 15 20 19 19 20 20 15 13 Class Distribution -------------------- 33% | Mutant 12% | Gladiator 11% | Commander-Assassin 9% | Scavenger-Mutant 8% | Hacker-Assassin 8% | Hacker-Mutant 4% | Bothacker-Mutant 3% | Assassin 3% | Scavenger-Assassin Dominant Class ---------------- Mutant | -10/Materials Mutant | -10/Mines Mutant | -10/Exiles Mutant | -9/Mines Scavenger-Mutant | -8/Materials Gladiator | -8/Garrison Gladiator | -8/Materials Commander-Assassin | -8/Storage Hacker-Assassin | -7/Factory Hacker-Mutant | -7/Garrison Bothacker-Mutant | -7/Factory Resources | -11 -10 -10 -10 -9 -8 -8 -8 -8 -7 -7 -7 ----------- Run | Yrd Mat Min Exi Min Mat Gar Mat Sto Fac Gar Fac Matter Collected 2851 | 348 316 28 . 92 656 132 276 276 350 269 108 Remotely . | . . . . . . . . . . . . Salvage Created 3796 | 163 403 120 . 33 857 355 742 238 381 321 183 Parts 259 | 14 33 13 . 8 49 23 44 18 29 12 16 Haulers Intercepted 4 | . 1 . . . 2 . 1 . . . . Recyclers Shooed 1 | . 1 . . . . . . . . . . Parts Field Recycled . | . . . . . . . . . . . . Retrieved Matter . | . . . . . . . . . . . . Parts Self-Destructed . | . . . . . . . . . . . . Prevented . | . . . . . . . . . . . . Kills | -11 -10 -10 -10 -9 -8 -8 -8 -8 -7 -7 -7 ------- Run | Yrd Mat Min Exi Min Mat Gar Mat Sto Fac Gar Fac Combat Hostiles Destroyed 86 | . 11 7 . 4 17 14 14 5 6 7 1 Melee 34 | . . . . . 1 10 10 . 5 7 1 Guns 18 | . 9 7 . . 2 . . . . . . Cannons 24 | . . . . . 13 4 1 5 1 . . AOE 9 | . 2 . . 4 . . 3 . . . . Classes Destroyed 14 | 2 5 1 . . 3 . . . 2 1 . Worker 5 | . . . . . 3 . . . 2 . . Builder 4 | . 1 . . . . . . . . . 3 Tunneler 5 | 5 . . . . . . . . . . . Hauler 4 | . 1 . . . 2 . 1 . . . . Recycler 3 | 1 . . . . . . 1 . . . 1 Operator 1 | . . . . . . . . . 1 . . Watcher 7 | . 3 . . . 1 . 2 . 1 . . Swarmer 30 | . 6 6 . 4 3 8 3 . . . . Saboteur 3 | . . . . . . . . . . 3 . Grunt 20 | . 5 . . . 8 3 3 . 1 . . Sentry 25 | . . . . . 5 3 7 5 1 4 . Hunter 2 | . . . . . 1 . 1 . . . . Programmer 5 | . . . . . . . . . 4 . 1 Assembled 1 | . . 1 . . . . . . . . . Best Kill Streak 5 | 3 3 3 . 4 5 4 3 2 3 2 4 Combat Bots Only 5 | . 3 3 . 4 5 4 3 2 1 2 1 Max Kills in Single Turn 4 | 1 2 2 . 4 1 1 2 1 1 1 1 Gunslinging 1 | . 1 1 . . . . . . . . . Exploded 4 | . 2 . . 4 . . 2 . . . . Melee 1 | . . . . . 1 1 1 . 1 1 1 Uniques/NPCs Destroyed . | . . . . . . . . . . . . Combat | -11 -10 -10 -10 -9 -8 -8 -8 -8 -7 -7 -7 -------- Run | Yrd Mat Min Exi Min Mat Gar Mat Sto Fac Gar Fac Hostile Shots Fired 725 | . 41 28 . 2 75 97 69 20 48 215 130 Missed 229 | . 5 4 . 1 24 24 24 8 8 82 49 Damage Taken 6091 | . 487 273 . 6 760 788 734 177 532 1066 1268 Core 1252 | . 146 66 . . 92 88 101 47 116 353 243 Absorbed by Shields 12 | . . . . . . 12 . . . . . Redirected to Shielding 205 | . . . . . . . . . . 172 33 Regen/Repaired (Parts) 490 | . 77 . . . . . 328 85 . . . Core Remaining (%) 51 | 100 . . . 15 . . . 40 . . . Volleys Fired 219 | 22 45 9 . 2 77 11 17 15 7 1 13 Largest 2 | 2 2 2 . 1 2 1 1 2 1 1 1 Hottest 95 | 40 80 80 . 33 95 48 48 87 90 40 5 Shots Fired 320 | 44 85 17 . 2 99 11 17 24 7 1 13 Gun 161 | 44 85 17 . . 15 . . . . . . Cannon 141 | . . . . . 84 11 15 24 6 1 . Launcher 4 | . . . . 2 . . 2 . . . . Special 14 | . . . . . . . . . 1 . 13 Kinetic 205 | 44 72 . . . 38 11 15 24 . 1 . Thermal 63 | . . . . . 57 . . . 6 . . Explosive 4 | . . . . 2 . . 2 . . . . Electromagnetic 34 | . 13 17 . . 4 . . . . . . Robot Hit Streak 18 | 5 9 5 . . 18 10 5 5 4 . 7 Robot Miss Streak 4 | 2 4 3 . . 2 1 1 1 1 . 2 Penetration Max . | . . . . . . . . . . . . Secondary Targets 5 | . 2 3 . . . . . . . . . Max Gunslinging Chain 1 | . 1 1 . . . . . . . . . Shots Hit Robots 339 | 27 58 9 . . 74 36 52 12 29 26 16 Core Hits 144 | 10 25 7 . 2 35 15 17 6 11 12 4 Critical Kills . | . . . . . . . . . . . . Critical Parts Destroyed 1 | . 1 . . . . . . . . . . Critical Strikes 25 | . 1 1 . . 2 4 7 1 2 5 2 Destroy 1 | . 1 . . . . . . . . . . Blast 3 | . . . . . 1 . 1 1 . . . Corrupt 1 | . . 1 . . . . . . . . . Sever 13 | . . . . . 1 4 6 . 2 . . Impale 7 | . . . . . . . . . . 5 2 Melee Attacks 344 | . . . . . 31 59 61 11 68 95 19 Impact 16 | . . . . . 16 . . . . . . Slashing 206 | . . . . . 15 59 61 11 56 4 . Piercing 122 | . . . . . . . . . 12 91 19 Sneak Attacks 18 | . . . . . 3 3 4 . 3 . 5 Combat Hostiles 4 | . . . . . . 3 1 . . . . Follow-up Attacks 8 | . . . . . . 4 . . 4 . . Damage Inflicted 9229 | 268 729 100 . 211 2001 1330 2031 308 1156 740 355 Guns 1238 | 268 625 100 . . 245 . . . . . . Cannons 2320 | . . . . . 1353 289 233 270 175 . . Explosions 587 | . 104 . . 211 66 . 206 . . . . Melee 5084 | . . . . . 337 1041 1592 38 981 740 355 Ramming . | . . . . . . . . . . . . Kinetic 2153 | 268 490 . . . 603 289 233 270 . . . Thermal 1286 | . 104 . . . 1007 . . . 175 . . Explosive 417 | . . . . 211 . . 206 . . . . Electromagnetic 289 | . 135 100 . . 54 . . . . . . Impact 175 | . . . . . 175 . . . . . . Slashing 3671 | . . . . . 162 1041 1592 38 838 . . Piercing 1238 | . . . . . . . . . 143 740 355 Highest Corruption 2 | . 2 2 2 2 . . 1 1 . . . Average Corruption 1 | . 1 2 2 2 . . 1 1 . . . Corruption Purged . | . . . . . . . . . . . . Corruption Blocked 1 | . . . . . . . . . 1 . . Effects 48 | . 1 6 7 13 . . 8 13 . . . Message Errors 10 | . 1 . . 3 . . 1 5 . . . Matter Fused 8 | . . 1 . 4 . . 1 2 . . . Heat Flow Errors 8 | . . 3 2 1 . . 1 1 . . . Energy Discharges 7 | . . 1 2 2 . . 1 1 . . . Data Loss (minor) 7 | . . 1 1 2 . . 2 1 . . . Data Loss (major) 3 | . . . 1 . . . 2 . . . . Misfires 3 | . . . . . . . . 3 . . . Alerts 2 | . . . 1 1 . . . . . . . Overload Shots . | . . . . . . . . . . . . Overflow Damage 496 | . 19 . . 37 75 66 114 3 52 28 102 Projectiles 101 | . . . . . 26 26 . . 49 . . Explosions 110 | . 19 . . 37 3 . 51 . . . . Melee 285 | . . . . . 46 40 63 3 3 28 102 Knockbacks 8 | . . . . . 7 1 . . . . . Impact 1 | . . . . . 1 . . . . . . Kinetic 7 | . . . . . 6 1 . . . . . Secondary . | . . . . . . . . . . . . Self-Inflicted Damage 28 | . 28 . . . . . . . . . . Shots 1 | . 1 . . . . . . . . . . Rammed . | . . . . . . . . . . . . Targets Rammed . | . . . . . . . . . . . . Kicked . | . . . . . . . . . . . . Crushed . | . . . . . . . . . . . . Highest Temperature 241 | . 54 232 241 161 64 93 192 191 60 8 9 Average Temperature 37 | . 18 69 124 85 22 33 33 30 31 3 9 Received Heat Transfer 1692 | . 201 . . . 315 159 288 45 114 306 264 Siege Activations . | . . . . . . . . . . . . Robots Corrupted . | . . . . . . . . . . . . Combat Hostiles . | . . . . . . . . . . . . Parts Fried 1 | . 1 . . . . . . . . . . Impact Corruptions 2 | . . . . . 2 . . . . . . Robots Melted . | . . . . . . . . . . . . Combat Hostiles . | . . . . . . . . . . . . Parts Melted 1 | . . . . . 1 . . . . . . Heat Transferred 1952 | . 150 . . . 1617 . . . 185 . . Parts Sabotaged 14 | . . . . . . . . . . 14 . Parts Stolen . | . . . . . . . . . . . . Parts Stripped . | . . . . . . . . . . . . Power Chain Reactions 3 | . 2 . . . 1 . . . . . . Alert | -11 -10 -10 -10 -9 -8 -8 -8 -8 -7 -7 -7 ------- Run | Yrd Mat Min Exi Min Mat Gar Mat Sto Fac Gar Fac Peak Influence 541 | 30 195 154 . 109 262 541 373 482 175 421 276 Initial 263 | . 19 34 . . . 116 263 91 175 102 220 Average 130 | 15 48 50 . 29 128 351 122 243 68 255 164 Maximum Alert Level 2 | . . . . . 1 2 1 2 . 2 1 Low Security (%) 76 | 100 100 100 . 100 79 9 76 46 100 32 47 Level 1 19 | . . . . . 20 63 23 28 . 64 52 Level 2 4 | . . . . . . 26 . 24 . 2 . Level 3 . | . . . . . . . . . . . . Level 4 . | . . . . . . . . . . . . Level 5 . | . . . . . . . . . . . . High Security . | . . . . . . . . . . . . Max Security . | . . . . . . . . . . . . Squads Dispatched 17 | . 1 . . . 1 . 2 3 8 . 2 Investigation 5 | . 1 . . . . . 1 . 2 . 1 Extermination 6 | . . . . . . . . . 5 . 1 Reinforcement 1 | . . . . . . . . . 1 . . Assault . | . . . . . . . . . . . . Garrison 5 | . . . . . 1 . 1 3 . . . Intercept . | . . . . . . . . . . . . Searches Triggered . | . . . . . . . . . . . . Construction Impeded . | . . . . . . . . . . . . Haulers Reinforced . | . . . . . . . . . . . . Active Scanning Responses . | . . . . . . . . . . . . Cargo Convoy Interrupts . | . . . . . . . . . . . . Stealth | -11 -10 -10 -10 -9 -8 -8 -8 -8 -7 -7 -7 --------- Run | Yrd Mat Min Exi Min Mat Gar Mat Sto Fac Gar Fac Distress Signals 8 | . . . . . 3 . 3 . 2 . . Communications Jammed . | . . . . . . . . . . . . Distress Signals . | . . . . . . . . . . . . Times Spotted 155 | . 18 13 . 3 29 13 27 12 15 13 12 Peak Tracking Total 10 | . 3 10 . 4 3 4 4 2 3 4 9 Tactical Retreats 6 | . . . . . 1 2 1 1 . 1 . Traps | -11 -10 -10 -10 -9 -8 -8 -8 -8 -7 -7 -7 ------- Run | Yrd Mat Min Exi Min Mat Gar Mat Sto Fac Gar Fac Traps Triggered 7 | . 3 . . . . 1 1 . . 1 1 Indirectly . | . . . . . . . . . . . . Trap Hack Attempts . | . . . . . . . . . . . . Triggered . | . . . . . . . . . . . . Disarmed . | . . . . . . . . . . . . Reprogrammed . | . . . . . . . . . . . . Reused . | . . . . . . . . . . . . Traps Extracted . | . . . . . . . . . . . . Installed . | . . . . . . . . . . . . Triggered . | . . . . . . . . . . . . Machines | -11 -10 -10 -10 -9 -8 -8 -8 -8 -7 -7 -7 ---------- Run | Yrd Mat Min Exi Min Mat Gar Mat Sto Fac Gar Fac Machines Disabled 10 | . 1 . . . . 1 . 6 . 2 . Max in Single Turn 1 | . 1 . . . . 1 . 1 . 1 . Garrison Access 1 | . . . . . . . . . . . 1 Garrison Relay 3 | . . . . . . 1 . . . 2 . Phase Generator 1 | . . . . . . . . . . 1 . Machines Repaired . | . . . . . . . . . . . . Machines Dismantled . | . . . . . . . . . . . . Machines Sabotaged . | . . . . . . . . . . . . Overloaded Fab Kills . | . . . . . . . . . . . . Hacking | -11 -10 -10 -10 -9 -8 -8 -8 -8 -7 -7 -7 --------- Run | Yrd Mat Min Exi Min Mat Gar Mat Sto Fac Gar Fac Machines Accessed 57 | . 6 . 2 . 8 1 11 11 10 1 7 Terminals 41 | . 5 . . . 6 1 8 10 6 1 4 Fabricators 4 | . . . . . . . . . 3 . 1 Repair Stations 4 | . 1 . . . . . 2 1 . . . Recycling Units 1 | . . . . . . . . . . . 1 Scanalyzers 2 | . . . . . 1 . 1 . . . . Garrison Access 3 | . . . . . 1 . . . 1 . 1 Total Hacks 158 | . 15 . 2 . 27 1 40 31 28 1 13 Successful 100 | . 10 . 2 . 18 . 27 18 18 1 6 Failed 58 | . 5 . . . 9 1 13 13 10 . 7 Catastrophic 5 | . . . . . . . . 3 1 . 1 Database Lockouts . | . . . . . . . . . . . . Manual 50 | . 8 . 1 . 8 . 13 6 13 . 1 Terminals 125 | . 13 . . . 23 1 28 29 21 1 9 Fabricators 7 | . . . . . . . . . 6 . 1 Repair Stations 14 | . 2 . . . . . 10 2 . . . Recycling Units 2 | . . . . . . . . . . . 2 Scanalyzers 4 | . . . . . 2 . 2 . . . . Garrison Access 4 | . . . . . 2 . . . 1 . 1 Terminal Hacks 52 | . 5 . 2 . 11 . 11 14 7 1 1 Record 3 | . 1 . 1 . . . 1 . . . . Part Schematic 2 | . . . . . . . . 1 1 . . Robot Analysis 4 | . . . . . 3 . 1 . . . . Prototype ID Bank 7 | . 1 . . . 1 . 3 2 . . . Open Door 2 | . . . . . . . . 2 . . . Branch Access Points 4 | . . . . . 1 . 1 1 1 . . Emergency Access Points 1 | . . . . . . . . 1 . . . Machine Index 1 | . . . . . . . . . 1 . . Terminal Index 3 | . . . . . . . 1 . 1 . 1 Repair Station Index 1 | . . . . . 1 . . . . . . Unreport Threat 2 | . . . . . . . 1 1 . . . Locate Traps 4 | . 1 . . . 1 . . 1 1 . . Dispatch Records 3 | . . . . . 2 . 1 . . . . Security Status 1 | . . . . . 1 . . . . . . Patrol Status 1 | . . . . . . . . 1 . . . Hauler Manifests 1 | . . . . . . . . 1 . . . Registered Components 5 | . 1 . . . 1 . 1 1 1 . . Zone Layout 5 | . 1 . . . . . 1 2 1 . . Security Stations 1 | . . . . . . . . . . 1 . Derelict Proto ID Bank 1 | . . . 1 . . . . . . . . Fabricator Hacks 3 | . . . . . . . . . 2 . 1 Network Status 2 | . . . . . . . . . 1 . 1 Build 1 | . . . . . . . . . 1 . . Repair Station Hacks 13 | . 2 . . . . . 9 2 . . . Scan Component 7 | . 1 . . . . . 5 1 . . . Repair 6 | . 1 . . . . . 4 1 . . . Recycling Unit Hacks 2 | . . . . . . . . . . . 2 Report Inventory 1 | . . . . . . . . . . . 1 Retrieve Components 1 | . . . . . . . . . . . 1 Scanalyzer 4 | . . . . . 2 . 2 . . . . Insert Component 2 | . . . . . 1 . 1 . . . . Analyze 2 | . . . . . 1 . 1 . . . . Garrison Access Hacks 3 | . . . . . 1 . . . 1 . 1 Unlock Access 2 | . . . . . 1 . . . 1 . . Seal Access 1 | . . . . . . . . . . . 1 Unauthorized Hacks 23 | . 3 . . . 4 . 5 2 8 . 1 Terminals 22 | . 3 . . . 4 . 5 2 7 . 1 Assimilate 3 | . . . . . . . . . 3 . . Botnet 17 | . 3 . . . 4 . 4 2 3 . 1 Operators 1 | . . . . . . . 1 . . . . Sabotage 1 | . . . . . . . . . 1 . . Fabricators 1 | . . . . . . . . . 1 . . Download 1 | . . . . . . . . . 1 . . Repair Stations . | . . . . . . . . . . . . Recycling Units . | . . . . . . . . . . . . Scanalyzers . | . . . . . . . . . . . . Garrison Access . | . . . . . . . . . . . . Data Cores Recovered . | . . . . . . . . . . . . Used . | . . . . . . . . . . . . Hacking Detections 43 | . 5 . . . 7 1 10 8 8 . 4 Full Trace Events 2 | . . . . . . . 1 . . . 1 Feedback Events . | . . . . . . . . . . . . Feedback Blocked . | . . . . . . . . . . . . Robot Schematics Acquired . | . . . . . . . . . . . . Robots Built . | . . . . . . . . . . . . Authchips . | . . . . . . . . . . . . Time . | . . . . . . . . . . . . Total Robot Build Rating . | . . . . . . . . . . . . Part Schematics Acquired 4 | . . . . . 1 . 1 1 1 . . Parts Built 1 | . . . . . . . . . 1 . . Authchips . | . . . . . . . . . . . . Time 152 | . . . . . . . . . 152 . . Total Part Build Rating 5 | . . . . . . . . . 5 . . Parts Repaired 6 | . 1 . . . . . 4 1 . . . Time 210 | . 26 . . . . . 152 32 . . . Parts Recycled . | . . . . . . . . . . . . Recycled Matter . | . . . . . . . . . . . . Retrieved Matter . | . . . . . . . . . . . . Retrieved Components 3 | . . . . . . . . . . . 3 Parts Scanalyzed 2 | . . . . . 1 . 1 . . . . Part Schematics Acquired 2 | . . . . . 1 . 1 . . . . Parts Damaged 2 | . . . . . 1 . 1 . . . . Bothacking | -11 -10 -10 -10 -9 -8 -8 -8 -8 -7 -7 -7 ------------ Run | Yrd Mat Min Exi Min Mat Gar Mat Sto Fac Gar Fac Used RIF Installer 2 | . . . . . . 1 . . . 1 . Patrol Navigation 1 | . . . . . . . . . . 1 . Robots Hacked 3 | . . . . . . . . . . . 3 Non-combat 2 | . . . . . . . . . . . 2 Combat 1 | . . . . . . . . . . . 1 Robot Hacks Applied 5 | . . . . . . . . . . . 5 no_distress 1 | . . . . . . . . . . . 1 find_station 1 | . . . . . . . . . . . 1 wipe_record 1 | . . . . . . . . . . . 1 reboot_system 1 | . . . . . . . . . . . 1 go_dormant 1 | . . . . . . . . . . . 1 Relay Couplers Released 12 | . . . . . . 4 . . . 8 . Machine Destruction 12 | . . . . . . 4 . . . 8 . Attached 1 | . . . . . . . . . . . 1 Fabnet Peak Effective % . | . . . . . . . . . . . . Robots Rewired . | . . . . . . . . . . . . Allies Hacked . | . . . . . . . . . . . . Hacks Repelled . | . . . . . . . . . . . . Allies | -11 -10 -10 -10 -9 -8 -8 -8 -8 -7 -7 -7 -------- Run | Yrd Mat Min Exi Min Mat Gar Mat Sto Fac Gar Fac Total Allies 11 | . . . . . . . . 10 1 . . Largest Group 10 | . . . . . . . . 10 7 . . Highest-Rated Group 173 | . . . . . . . . 173 123 . . Highest-Rated Ally 29 | . . . . . . . . 29 29 . . Total Orders 21 | . . . . . . . . 6 15 . . STAY 7 | . . . . . . . . 3 4 . . FOLLOW 6 | . . . . . . . . 3 3 . . EXPLORE 4 | . . . . . . . . . 4 . . RETURN 4 | . . . . . . . . . 4 . . Ally Attacks 100 | . . . . . . . . 78 22 . . Total Damage 1373 | . . . . . . . . 1044 329 . . Kills 16 | . . . . . . . . 11 5 . . Allies Corrupted . | . . . . . . . . . . . . Allies Melted . | . . . . . . . . . . . . Intel | -11 -10 -10 -10 -9 -8 -8 -8 -8 -7 -7 -7 ------- Run | Yrd Mat Min Exi Min Mat Gar Mat Sto Fac Gar Fac Robot Analysis Total 4 | . . . . . 3 . 1 . . . . Derelict Logs Recovered 3 | . . 1 . 2 . . . . . . . Drone Launches 3 | . . . . . . . . . 3 . . Drone Recoveries 3 | . . . . . . . . . 3 . . Exploration | -11 -10 -10 -10 -9 -8 -8 -8 -8 -7 -7 -7 ------------- Run | Yrd Mat Min Exi Min Mat Gar Mat Sto Fac Gar Fac Turns Passed 15572 | 154 1567 636 529 868 2614 1097 2208 1333 3161 644 761 Spaces Moved 8234 | 71 852 376 330 511 1059 465 1001 688 1779 470 632 Core 6 | 5 . . . . . . . . . 1 . Treads 5113 | . 672 376 330 511 1059 465 1001 688 11 . . Legs 2121 | 66 180 . . . . . . . 1768 82 25 Wheels . | . . . . . . . . . . . . Hover 994 | . . . . . . . . . . 387 607 Flight . | . . . . . . . . . . . . Fastest Speed 38 | 50 120 160 160 160 155 155 155 155 120 38 38 Average Speed 135 | 115 151 160 160 160 159 155 155 155 120 60 66 Slowest Speed 500 | 120 160 160 160 160 160 155 155 232 155 500 130 Overloaded Moves . | . . . . . . . . . . . . Propulsion Burnouts . | . . . . . . . . . . . . Robots Hopped . | . . . . . . . . . . . . Cave-ins Triggered . | . . . . . . . . . . . . Exploration Rate (%) 58 | 4 95 82 75 100 66 43 63 83 42 39 14 Regions Visited 11 Branch Regions 4 Pre-discovered Areas 2 | . . 1 1 . . . . . . . . Known Exits Taken 4 | . . . . . 1 . 1 1 1 . . Unknown Exits Taken 5 | 1 1 1 1 1 . . . . . . . Scrap Searched 4 | . . 2 . 2 . . . . . . . Spaces Dug 113 | . . . . 8 20 5 12 7 33 18 10 Terrain Destroyed 167 | . 5 . . 20 25 5 40 11 33 18 10 Melee 99 | . . . . . 18 5 12 4 33 17 10 Projectile 17 | . . . . . 4 . 5 7 . 1 . AOE 51 | . 5 . . 20 3 . 23 . . . . Terrain Rammed . | . . . . . . . . . . . . Walls Destroyed . | . . . . . . . . . . . . Machines Disabled . | . . . . . . . . . . . . Actions | -11 -10 -10 -10 -9 -8 -8 -8 -8 -7 -7 -7 --------- Run | Yrd Mat Min Exi Min Mat Gar Mat Sto Fac Gar Fac Total 11823 | 100 1049 394 331 560 1854 754 1553 915 2695 679 939 Wait 2627 | . 114 5 . 38 561 211 427 183 768 75 245 Move 8223 | 70 851 375 329 510 1058 464 1000 687 1778 469 632 Hop . | . . . . . . . . . . . . Pick Up 115 | 2 11 . 2 4 37 4 13 6 23 9 4 Fast Attach 32 | 6 4 . . . 2 . 6 1 . 8 5 Attach 66 | . 2 2 . 2 12 5 10 . 10 14 9 Detach 17 | . 1 2 . 2 . 1 3 . 3 1 4 Swap 100 | . 11 1 . 2 36 2 6 6 25 8 3 Drop 101 | . 10 . . . 40 3 13 6 21 3 5 Fire 219 | 22 45 9 . 2 77 11 17 15 7 1 13 Melee 323 | . . . . . 31 53 58 11 60 91 19 Ram . | . . . . . . . . . . . . Kick . | . . . . . . . . . . . . Crush . | . . . . . . . . . . . . Escape Stasis . | . . . . . . . . . . . . Rewire . | . . . . . . . . . . . . Trap . | . . . . . . . . . . . . Miscellaneous . | . . . . . . . . . . . . Route ------- -11/Scrapyard -10/Materials (discovered 5 exits: [*Mat x3] / [*Min x2]) -10/Mines (discovered 2 exits: [*Mat] / *Exi) -10/Exiles -9/Mines (discovered 2 exits: *Mat x2) -8/Materials (discovered 4 exits: *Fac / *Sto x2 / Gar) -8/Garrison -8/Materials (discovered 2 exits: *Fac / *Sto) -8/Storage (discovered 2 exits: *Fac / Rec) -7/Factory (discovered 6 exits: [*Fac x3] / *Low x2 / Gar) -7/Garrison -7/Factory History --------- Turn | Location | Event 9 | -11/Scrapyard | Discovered new exit (range 15) 155 | -11/Scrapyard | Entered Materials 339 | -10/Materials | Build established: Mutant 636 | -10/Materials | Repaired Assault Rifle 781 | -10/Materials | Core integrity fell below 50% 1161 | -10/Materials | Discovered new exit (range 7) 1233 | -10/Materials | Discovered new exit (range 14) 1233 | -10/Materials | Discovered new exit (range 15) 1476 | -10/Materials | Discovered new exit (range 11) 1668 | -10/Materials | Discovered new exit (range 4) 1722 | -10/Materials | Entered Mines 1796 | -10/Mines | Learned location of Mines (-9) 1876 | -10/Mines | Assembled infested the area 2087 | -10/Mines | Core integrity fell below 20% 2112 | -10/Mines | Discovered new exit (range 16) 2351 | -10/Mines | Discovered new exit (range 5) 2358 | -10/Mines | Entered Exiles 2398 | -10/Exiles | Met 8R-AWN 2424 | -10/Exiles | Met EX-HEX 2472 | -10/Exiles | Met EX-BIN 2491 | -10/Exiles | Aligned with FarCom system 2493 | -10/Exiles | Given EX-Vault access code 2530 | -10/Exiles | Opened EX-Vault 2541 | -10/Exiles | Found 0b10 Alert Chip 2575 | -10/Exiles | Warned to stay clear of 0b10 Research branches 2617 | -10/Exiles | Met EX-DEC 2625 | -10/Exiles | Learned location of Zion (-6) 2720 | -10/Exiles | Visited The Gauntlet 2872 | -10/Exiles | Discovered new exit (range 11) 2887 | -10/Exiles | Left Exiles lab with 0b10 Alert Chip 2887 | -10/Exiles | Entered Mines 2954 | -9/Mines | Received a Rocket Launcher from a helpful Derelict 3058 | -9/Mines | Discovered new exit (range 14) 3392 | -9/Mines | Learned Materials trap positions 3394 | -9/Mines | Discovered new exit (range 6) 3615 | -9/Mines | Learned Materials terminal intel 3755 | -9/Mines | Entered Materials 3755 | -8/Materials | Evolved 4 slots: Propulsion x1, Utility x3 3756 | -8/Materials | Loaded intel: 20 trap records 3757 | -8/Materials | Loaded intel: 12 terminal locations 4227 | -8/Materials | Garrison activated, responded to threat 4341 | -8/Materials | Identified exit to Storage 4896 | -8/Materials | Build established: Scavenger-Mutant 5540 | -8/Materials | Discovered new exit (range 7) 6226 | -8/Materials | Build established: Mutant 6367 | -8/Materials | Identified exit to Garrison 6369 | -8/Materials | Entered Garrison 6398 | -8/Garrison | Garrison Relay disabled 7021 | -8/Garrison | Build established: Gladiator 7047 | -8/Garrison | Triggered checkpoint 7322 | -8/Garrison | Installed Relay Interface Framework 7332 | -8/Garrison | Discovered new exit (range 13) 7466 | -8/Garrison | Entered Materials 7785 | -8/Materials | Build established: Mutant 8196 | -8/Materials | Garrison activated, responded to threat 8375 | -8/Materials | Discovered exit to Storage (range 12) 8392 | -8/Materials | Discovered new exit (range 8) 8415 | -8/Materials | Build established: Gladiator 8584 | -8/Materials | Identified exit to Factory 8920 | -8/Materials | Repaired Adv. Treads 8954 | -8/Materials | Repaired Imp. Treads 9081 | -8/Materials | Repaired Med. Treads 9121 | -8/Materials | Repaired Scythe 9249 | -8/Materials | Core integrity fell below 50% 9674 | -8/Materials | Entered Storage 9695 | -8/Storage | Build established: Assassin 10208 | -8/Storage | Build established: Skirmisher 10282 | -8/Storage | Identified exit to Recycling 10284 | -8/Storage | Assisted by bots powering up and referring to "LRC-V3" 10354 | -8/Storage | Discovered exit to Factory (range 5) 10402 | -8/Storage | Garrison activated, responded to threat 10591 | -8/Storage | Build established: Commander-Assassin 10910 | -8/Storage | Repaired Imp. Treads 11007 | -8/Storage | Entered Factory 11007 | -7/Factory | Accompanied by 7 allies 11007 | -7/Factory | Evolved 2 slots: Propulsion x1, Utility x1 12206 | -7/Factory | Identified exit to Lower Caves 12230 | -7/Factory | Discovered new exit (range 15) 12882 | -7/Factory | Discovered new exit (range 9) 12930 | -7/Factory | Build established: Hacker-Assassin 13428 | -7/Factory | P-60 Hacker assimilated allied Administrator 4a 13951 | -7/Factory | Discovered new exit (range 15) 14112 | -7/Factory | Fabricated Antimatter Cannon (x1) 14165 | -7/Factory | Identified exit to Garrison 14168 | -7/Factory | Entered Garrison 14243 | -7/Garrison | Learned Factory security intel 14264 | -7/Garrison | Triggered checkpoint 14338 | -7/Garrison | Core integrity fell below 50% 14359 | -7/Garrison | Garrison Relay disabled 14362 | -7/Garrison | Lost 4 parts (1p2n1u) 14473 | -7/Garrison | Build established: Hacker-Mutant 14539 | -7/Garrison | Phase Generator disabled 14753 | -7/Garrison | Expanded RIF knowledge: Patrol Navigation 14798 | -7/Garrison | Garrison Relay disabled 14800 | -7/Garrison | Triggered checkpoint 14811 | -7/Garrison | Discovered new exit (range 4) 14812 | -7/Garrison | Entered Factory 15068 | -7/Factory | Build established: Bothacker-Mutant 15516 | -7/Factory | Core integrity fell below 20% 15573 | -7/Factory | Destroyed by S-27 Virus with Autogun Last Messages --------------- 15522_ M-28 Smith repairs G-47 Trooper. 15526_ R-06 Scavenger collects Com. Wheel. 15528_ Connecting with Garrison Access... >>Seal Access door sealed. 15532_ Acquired Imp. Titanium Leg. 15534_ Dropped Gravmag System. 15535_ Spear destroyed. 15540_ Dropped Gravmag Array. 15540_ Acquired Imp. Titanium Leg. 15541_ Remote Datajack destroyed. 15543_ Acquired Imp. Titanium Leg. 15552_ Nuclear Reactor explodes. 15552_ S-27 Virus destroyed. 15554_ The unstable cave ceiling collapses. 15554_ K-01 Serf collects debris. 15554_ Lyr. Light Armor Plating destroyed. 15555_ Nuclear Reactor explodes. 15556_ K-01 Serf collects debris. 15564_ Imp. Titanium Leg destroyed. Map ----- +----------------------------------------------------+ | ?????????????????????????????????????????????????? | | ?????????????????????????????????????????????????? | | ?????????????????????????????????????????????????? | | ?????????????????????????????????????????????#???? | | ????????????????????????????????????????? ??? | | ???????????????????????????????????????? #?? | | ??????????????????????????????????????? #?? | | ???????????????????????????????????????? +?? | | ????????????????????????????????????????? #?? | | ?????????????????p???????????????????????# #?? | | ?????????????????????????????????????????# #?? | | ?????????????????????????????????####+#### #?? | | ?????????????????????????????????! # #?? | | ?????????????????????????????????? ! #^ #?? | | ?????????????????????????????????? # ### | | ??????????????????????????????????? # | | ???????????????????????????????????"""" # | | ????????????????????????????????""?"""" [= | | ???????????????????????????????""" """" [ | | ??????????????????????????????"""" """" g | | ??????????????????????????????"""" """" # = | | ???????????????????????????????""" """" | | ????????????????????????????# """" """" | | ????????????????????????????# g | | ?????????????????+###################g### | | ?????????? w @ s " | | ?????????? sg !! " | | ?????????? sg ! " | | ??????????? | | ??????????? | | ????????????####+####################+#######+#### | | ?????????????????????????????????????????????????? | | ?????????????????????????????????????????????????? | | ?????????????????????????????????????????????????? | | ?????????????????????????????????????????????????? | | ?????????????????????????????????????????????????? | | ?????????????????????????????????????????????????? | | ?????????????????????????????????????????????????? | | ?????????????????????????????????????????????????? | | ?????????????????????????????????????????????????? | | ?????????????????????????????????????????????????? | | ?????????????????????????????????????????????????? | | | | | | | | | | | | | | | | | +----------------------------------------------------+ Best States ------------- Heat Dissipation 53 Energy Generation 17 Energy Capacity 300 Matter Stores 300 Matter Capacity 300 Sight Range 18 Terrain Scan Range 16 Terrain Scan Density 85 Corruption Block 8 Armor Coverage 450 Propulsion Shielding 66 Melee Speed Boost 20 Evasion (%) 57 Targeting Accuracy 8 Melee Accuracy 12 Target Analysis 9 Recoil Reduction 3 Offensive Hacking 20 Defensive Hacking 10 Relay Coupler Types 1 Relay Coupler Value 20 Item Schematics ----------------- Med. Treads | -8/Materials | Scanalyzed Carbon-fiber Leg | -8/Materials | Scanalyzed Imp. Cryofiber Web | -8/Storage | Hacked Lyr. Medium Armor Plating | -7/Factory | Hacked Robot Schematics ------------------ None Fabricated ------------ Antimatter Cannon | x1 | -7/Factory | Preloaded Alien Tech Used ----------------- None Achievements -------------- None Challenges ------------ None Game ------ Seed SniperPointyBlaster Manual? 0 Play Time 04:36:52 Cumulative 153.7 hours Start 2024.04.20 @ 17:42:26 End 2024.04.21 @ 14:01:03 Sessions 3 Manual Loads 0 Difficulty Rogue Special Mode None Game No. 143 Rogue 143 Adventurer 0 Explorer 0 Win Type - Total 0 Types 0/0/0/0/0/0/0/0/0 Lore% 37 Gallery% 44 Achievement% 35 Wizard Run 0 Options --------- Layout 0 ASCII 1 Keyboard 0 Movement Mouse Keybinds 0 Fullscreen 1 Font 18/SmallcapsGlow Map View 76x50 Zoom Use 0% Tactical HUD 1 Map Filters NONE Filters NONE Steam 1 RUN: 4418a5c6-aca5-4ad5-8950-92880deb52ae